Cogmind - Beta 13 @@@ ROGUE MODE // 2024.04.29 @ 08:14:55 Player: peko Result: Destroyed by G-47 Trooper with Particle Gun Performance ------------- Evolutions (2) 1000 Regions Visited (3) 600 Robots Destroyed (36) 180 Value Destroyed (1165) 1165 Prototype IDs (2) 40 Alien Tech Used (0) 0 Bonus (27) 27 TOTAL SCORE: 3012 Bonus ------- High Alert Combat Kills 27 Cogmind --------- Core Integrity 0/550 Matter 223/300 Energy 8/100 System Corruption 0% Temperature Warning (304) Movement Core (100) Ox1 Location -8/Materials Parts ------- > --- POWER (2) -------- (None) > --- PROPULSION (4) --- (None) > --- UTILITY (3) ------ Target Analyzer Hacking Suite Hacking Suite > --- WEAPON (2) ------- Ion Cannon > --- INVENTORY (5) ---- Target Analyzer Target Analyzer Hacking Suite Ion Cannon Grenade Launcher Peak State ------------ > --- POWER ------------ Improved Ion Engine > --- PROPULSION ------- VTOL Module VTOL Module VTOL Module VTOL Module > --- UTILITY ---------- Large Storage Unit Target Analyzer Hacking Suite > --- WEAPON ----------- Ion Cannon Ion Cannon > --- INVENTORY -------- Target Analyzer Target Analyzer Target Analyzer Hacking Suite Hacking Suite Hacking Suite Field Laser Ion Cannon Ion Cannon Grenade Launcher [Rating: 25] Favorites ----------- Power Light Nuclear Core Engine Ion Engine Power Core Light Nuclear Core Propulsion Aluminum Leg Leg Aluminum Leg Flight Unit VTOL Module Utility Targeting Computer Device Improved Heat Sink Storage Small Storage Unit Processor Targeting Computer Hackware Hacking Suite Protection Light Armor Plating Weapon Ion Cannon Energy Gun EM Pulse Gun Energy Cannon Ion Cannon Ballistic Gun Assault Rifle Launcher Grenade Launcher Build | -11 -10 -9 -8 ------- Run | Yrd Mat Mat Mat Slots Evolved 4 | . . 2 2 Power 1 | . . . 1 Propulsion 2 | . . 1 1 Utility 1 | . . 1 . Weapon . | . . . . Parts Attached 45 | 4 9 25 7 Power 5 | 1 1 2 1 Engine 3 | 1 . 2 . Core 2 | . 1 . 1 Reactor . | . . . . Propulsion 14 | . 4 9 1 Treads . | . . . . Leg 10 | . 4 6 . Wheel . | . . . . Hover . | . . . . Flight 4 | . . 3 1 Utility 12 | 1 1 7 3 Device 1 | . . 1 . Storage 4 | 1 . 3 . Processor 3 | . 1 2 . Hackware 3 | . . . 3 Protection 1 | . . 1 . Artifact . | . . . . Weapon 14 | 2 3 7 2 Energy Gun 4 | 1 1 1 1 Energy Cannon 3 | . . 2 1 Ballistic Gun 4 | 1 . 3 . Ballistic Cannon . | . . . . Launcher 3 | . 2 1 . Special Weapon . | . . . . Impact Weapon . | . . . . Slashing Weapon . | . . . . Piercing Weapon . | . . . . Special Melee Weapon . | . . . . Unidentified Prototypes . | . . . . Parts Lost 25 | . 2 12 11 Power 5 | . 1 2 2 Propulsion 9 | . . 5 4 Utility 4 | . . 2 2 Weapon 7 | . 1 3 3 Highest Loss Streak 7 | . 1 4 7 To Critical Strikes . | . . . . Average Slot Usage (%) 75 | . 86 78 51 Engine 6 | . 9 6 1 Core 3 | . 4 2 4 Leg 15 | . 16 23 . Flight 2 | . . 2 7 Storage 9 | . 14 5 9 Processor 13 | . 12 15 9 Energy Gun 7 | . 13 5 2 Energy Cannon 5 | . . 6 11 Ballistic Gun 8 | . 14 6 . Naked Turns . | . . . . Heaviest Build 39 | 14 15 39 39 Greatest Support 30 | 3 20 30 16 Greatest Overweight (x) 11 | 4 4 9 11 Average Overweight (x) 1 | 2 1 . 6 Largest Inventory Capacity 15 | 8 8 15 15 Average Capacity 9 | 7 8 8 14 Most Carried 13 | 4 4 13 11 Average Carried 4 | . 2 5 9 Final Capacity 15 | 8 8 15 5 Final Carried 12 | . 2 12 5 Class Distribution -------------------- 68% | Mutant 31% | Scavenger-Mutant Dominant Class ---------------- Mutant | -10/Materials Scavenger-Mutant | -9/Materials Mutant | -8/Materials Resources | -11 -10 -9 -8 ----------- Run | Yrd Mat Mat Mat Matter Collected 793 | 197 171 350 75 Remotely . | . . . . Salvage Created 1478 | . 375 742 361 Parts 72 | . 20 48 4 Haulers Intercepted 1 | . 1 . . Recyclers Shooed 1 | . . 1 . Parts Field Recycled . | . . . . Retrieved Matter . | . . . . Parts Self-Destructed . | . . . . Prevented . | . . . . Kills | -11 -10 -9 -8 ------- Run | Yrd Mat Mat Mat Combat Hostiles Destroyed 30 | . 6 19 5 Guns 22 | . 5 16 1 Cannons 6 | . . 2 4 AOE 2 | . 1 1 . Classes Destroyed 9 | . 5 2 2 Worker 1 | . 1 . . Hauler 1 | . 1 . . Recycler 1 | . . . 1 Operator 1 | . 1 . . Watcher 2 | . 1 1 . Swarmer 4 | . . 4 . Grunt 21 | . 6 11 4 Duelist 1 | . . . 1 Sentry 4 | . . 4 . Best Kill Streak 7 | . 3 7 2 Combat Bots Only 7 | . 2 7 2 Max Kills in Single Turn 2 | . 2 2 1 Gunslinging . | . . . . Exploded 1 | . 1 1 . Melee . | . . . . Uniques/NPCs Destroyed . | . . . . Combat | -11 -10 -9 -8 -------- Run | Yrd Mat Mat Mat Hostile Shots Fired 270 | . 54 132 84 Missed 78 | . 18 51 9 Damage Taken 2949 | . 559 1098 1292 Core 941 | . 140 249 552 Absorbed by Shields . | . . . . Core Remaining (%) 60 | 100 44 37 . Volleys Fired 122 | . 33 60 29 Largest 2 | . 2 2 2 Hottest 123 | . 85 120 123 Shots Fired 217 | . 66 99 52 Gun 166 | . 63 90 13 Cannon 43 | . . 4 39 Launcher 8 | . 3 5 . Special . | . . . . Kinetic 81 | . 33 48 . Thermal 103 | . 5 46 52 Explosive 8 | . 3 5 . Electromagnetic 25 | . 25 . . Robot Hit Streak 16 | . 9 16 6 Robot Miss Streak 3 | . 3 3 2 Penetration Max . | . . . . Secondary Targets 4 | . 1 3 . Max Gunslinging Chain 1 | . 1 1 . Shots Hit Robots 149 | . 40 72 37 Core Hits 64 | . 18 36 10 Critical Kills 1 | . . . 1 Critical Parts Destroyed 1 | . . 1 . Critical Strikes 7 | . . 6 1 Burn 5 | . . 5 . Meltdown 1 | . . . 1 Destroy 1 | . . 1 . Melee Attacks . | . . . . Impact . | . . . . Slashing . | . . . . Piercing . | . . . . Sneak Attacks . | . . . . Combat Hostiles . | . . . . Follow-up Attacks . | . . . . Damage Inflicted 2518 | . 702 1000 816 Guns 1549 | . 553 877 119 Cannons 744 | . . 48 696 Explosions 207 | . 149 58 . Melee . | . . . . Ramming 18 | . . 17 1 Kinetic 665 | . 239 426 . Thermal 1429 | . 115 499 815 Explosive 136 | . 78 58 . Electromagnetic 270 | . 270 . . Impact . | . . . . Slashing . | . . . . Piercing . | . . . . Highest Corruption . | . . . . Average Corruption . | . . . . Corruption Purged . | . . . . Corruption Blocked . | . . . . Overload Shots . | . . . . Overflow Damage 12 | . . . 12 Projectiles 12 | . . . 12 Explosions . | . . . . Melee . | . . . . Knockbacks 1 | . . 1 . Impact 1 | . . 1 . Kinetic . | . . . . Secondary . | . . . . Self-Inflicted Damage 63 | . 63 . . Shots 3 | . 3 . . Rammed 1 | . . . 1 Targets Rammed 4 | . . 3 1 Kicked 3 | . . 3 . Crushed . | . . . . Highest Temperature 547 | . 144 121 547 Average Temperature 118 | . 52 47 255 Received Heat Transfer 1437 | . 279 465 693 Effects 8 | . . . 8 Interference 1 | . . . 1 Matter Decay 1 | . . . 1 Short Circuit 1 | . . . 1 Damage (minor) 2 | . . . 2 Damage (major) 2 | . . . 2 Damage (core) 1 | . . . 1 Siege Activations . | . . . . Robots Corrupted . | . . . . Combat Hostiles . | . . . . Parts Fried . | . . . . Impact Corruptions . | . . . . Robots Melted 1 | . . . 1 Combat Hostiles . | . . . . Parts Melted 7 | . . 3 4 Heat Transferred 3221 | . 261 1591 1369 Parts Sabotaged . | . . . . Parts Stolen . | . . . . Parts Stripped . | . . . . Power Chain Reactions 2 | . 2 . . Alert | -11 -10 -9 -8 ------- Run | Yrd Mat Mat Mat Peak Influence 439 | . 110 439 155 Initial 128 | . . 46 128 Average 153 | . 36 293 135 Maximum Alert Level 2 | . . 2 . Low Security (%) 68 | 100 100 17 100 Level 1 26 | . . 68 . Level 2 5 | . . 13 . Level 3 . | . . . . Level 4 . | . . . . Level 5 . | . . . . High Security . | . . . . Max Security . | . . . . Squads Dispatched 7 | . 2 3 2 Investigation 1 | . 1 . . Extermination . | . . . . Reinforcement 6 | . 1 3 2 Assault . | . . . . Garrison . | . . . . Intercept . | . . . . Searches Triggered . | . . . . Construction Impeded . | . . . . Haulers Reinforced . | . . . . Active Scanning Responses . | . . . . Cargo Convoy Interrupts . | . . . . Stealth | -11 -10 -9 -8 --------- Run | Yrd Mat Mat Mat Distress Signals . | . . . . Communications Jammed . | . . . . Distress Signals . | . . . . Times Spotted 48 | . 14 24 10 Peak Tracking Total 7 | . 4 7 6 Tactical Retreats . | . . . . Traps | -11 -10 -9 -8 ------- Run | Yrd Mat Mat Mat Traps Triggered 1 | . 1 . . Indirectly . | . . . . Trap Hack Attempts . | . . . . Triggered . | . . . . Disarmed 3 | . . . 3 Reprogrammed . | . . . . Reused . | . . . . Traps Extracted . | . . . . Installed . | . . . . Triggered . | . . . . Machines | -11 -10 -9 -8 ---------- Run | Yrd Mat Mat Mat Machines Disabled 1 | . . 1 . Max in Single Turn 1 | . . 1 . Machines Repaired . | . . . . Machines Dismantled . | . . . . Machines Sabotaged . | . . . . Overloaded Fab Kills . | . . . . Hacking | -11 -10 -9 -8 --------- Run | Yrd Mat Mat Mat Machines Accessed 3 | . 1 . 2 Terminals 3 | . 1 . 2 Fabricators . | . . . . Repair Stations . | . . . . Recycling Units . | . . . . Scanalyzers . | . . . . Garrison Access . | . . . . Total Hacks 5 | . 1 . 4 Successful 5 | . 1 . 4 Failed . | . . . . Catastrophic . | . . . . Database Lockouts . | . . . . Manual . | . . . . Terminals 5 | . 1 . 4 Fabricators . | . . . . Repair Stations . | . . . . Recycling Units . | . . . . Scanalyzers . | . . . . Garrison Access . | . . . . Terminal Hacks 5 | . 1 . 4 Prototype ID Bank 1 | . . . 1 Branch Access Points 1 | . 1 . . Disarm Traps 2 | . . . 2 Hauler Manifests 1 | . . . 1 Fabricator Hacks . | . . . . Repair Station Hacks . | . . . . Recycling Unit Hacks . | . . . . Scanalyzer . | . . . . Garrison Access Hacks . | . . . . Unauthorized Hacks . | . . . . Terminals . | . . . . Fabricators . | . . . . Repair Stations . | . . . . Recycling Units . | . . . . Scanalyzers . | . . . . Garrison Access . | . . . . Data Cores Recovered . | . . . . Used . | . . . . Hacking Detections 1 | . . . 1 Full Trace Events . | . . . . Feedback Events . | . . . . Feedback Blocked . | . . . . Robot Schematics Acquired . | . . . . Robots Built . | . . . . Authchips . | . . . . Time . | . . . . Total Robot Build Rating . | . . . . Part Schematics Acquired . | . . . . Parts Built . | . . . . Authchips . | . . . . Time . | . . . . Total Part Build Rating . | . . . . Parts Repaired . | . . . . Time . | . . . . Parts Recycled . | . . . . Recycled Matter . | . . . . Retrieved Matter . | . . . . Retrieved Components . | . . . . Parts Scanalyzed . | . . . . Part Schematics Acquired . | . . . . Parts Damaged . | . . . . Bothacking | -11 -10 -9 -8 ------------ Run | Yrd Mat Mat Mat Used RIF Installer . | . . . . Robots Hacked . | . . . . Non-combat . | . . . . Combat . | . . . . Robot Hacks Applied . | . . . . Relay Couplers Released . | . . . . Fabnet Peak Effective % . | . . . . Robots Rewired . | . . . . Allies Hacked . | . . . . Hacks Repelled . | . . . . Allies | -11 -10 -9 -8 -------- Run | Yrd Mat Mat Mat Total Allies . | . . . . Largest Group . | . . . . Highest-Rated Group . | . . . . Highest-Rated Ally . | . . . . Total Orders . | . . . . Ally Attacks . | . . . . Total Damage . | . . . . Kills . | . . . . Allies Corrupted . | . . . . Allies Melted . | . . . . Intel | -11 -10 -9 -8 ------- Run | Yrd Mat Mat Mat Robot Analysis Total . | . . . . Derelict Logs Recovered . | . . . . Drone Launches . | . . . . Drone Recoveries . | . . . . Exploration | -11 -10 -9 -8 ------------- Run | Yrd Mat Mat Mat Turns Passed 1676 | 53 639 633 351 Spaces Moved 687 | 27 322 277 61 Core 161 | 27 90 12 32 Treads . | . . . . Legs 481 | . 232 249 . Wheels . | . . . . Hover . | . . . . Flight 45 | . . 16 29 Fastest Speed 50 | 50 120 50 100 Average Speed 172 | 175 160 141 374 Slowest Speed 775 | 250 250 775 600 Overloaded Moves . | . . . . Propulsion Burnouts . | . . . . Robots Hopped . | . . . . Cave-ins Triggered . | . . . . Exploration Rate (%) 28 | 3 77 24 8 Regions Visited 3 Branch Regions . Pre-discovered Areas . | . . . . Known Exits Taken . | . . . . Unknown Exits Taken 3 | 1 1 1 . Scrap Searched . | . . . . Spaces Dug 5 | . 5 . . Terrain Destroyed 67 | . 25 39 3 Melee . | . . . . Projectile 3 | . . . 3 AOE 64 | . 25 39 . Terrain Rammed . | . . . . Walls Destroyed . | . . . . Machines Disabled . | . . . . Actions | -11 -10 -9 -8 --------- Run | Yrd Mat Mat Mat Total 966 | 34 380 425 127 Wait 48 | . 4 19 25 Move 684 | 26 321 276 61 Hop . | . . . . Pick Up 45 | 4 9 30 2 Fast Attach 5 | . . 4 1 Attach 29 | 4 7 12 6 Detach 3 | . 2 1 . Swap 11 | . 2 9 . Drop 15 | . 2 11 2 Fire 122 | . 33 60 29 Melee . | . . . . Ram 1 | . . . 1 Kick 3 | . . 3 . Crush . | . . . . Escape Stasis . | . . . . Rewire . | . . . . Trap . | . . . . Miscellaneous . | . . . . Route ------- -11/Scrapyard -10/Materials (discovered 3 exits: [*Mat x2] / *Min) -9/Materials -8/Materials History --------- Turn | Location | Event 19 | -11/Scrapyard | Discovered new exit (range 15) 54 | -11/Scrapyard | Entered Materials 213 | -10/Materials | Identified exit to Mines 305 | -10/Materials | Build established: Mutant 485 | -10/Materials | Discovered new exit (range 15) 595 | -10/Materials | Core integrity fell below 50% 631 | -10/Materials | Discovered new exit (range 15) 693 | -10/Materials | Entered another Materials area 693 | -9/Materials | Evolved 2 slots: Propulsion x1, Utility x1 832 | -9/Materials | Lost 3 parts (1n2u) 887 | -9/Materials | Lost 4 parts (1p2n1w) 895 | -9/Materials | Destroyed 7 combat bots 1041 | -9/Materials | Core integrity fell below 50% 1083 | -9/Materials | Lost 3 parts (1p1n1w) 1159 | -9/Materials | Discovered new exit (range 14) 1326 | -9/Materials | Entered another Materials area 1326 | -8/Materials | Evolved 2 slots: Power x1, Propulsion x1 1463 | -8/Materials | Lost 7 parts (1p4n1u1w) 1638 | -8/Materials | Core integrity fell below 50% 1659 | -8/Materials | Core integrity fell below 20% 1677 | -8/Materials | Destroyed by G-47 Trooper with Particle Gun Last Messages --------------- reinforcements to Terminal M004. 01600_ ALERT: Hostiles spotted, dispatching reinforcements to Terminal M011. 01604_ Slammed into T-07 Excavator. 01635_ Critical hit (Burn: +37). 01641_ Ion Cannon destroyed. 01647_ Lgt. Nuclear Core destroyed. 01651_ G-47 Trooper destroyed. 01655_ Target Analyzer broken. 01655_ Overheating: Short circuit. 01657_ Overheating: Lrg. Storage Unit damaged (-50). 01663_ Overheating: Matter decay (-62). 01669_ Field Laser destroyed. 01672_ G-47 Trooper heat damages Aluminum Leg, Particle Gun, Lgt. Nuclear Core. 01673_ Aluminum Leg melted. 01673_ G-47 Trooper destroyed. 01673_ Lrg. Storage Unit destroyed. 01676_ Acquired Hacking Suite. Map ----- +----------------------------------------------------+ | ???????????????# ????????????????????????????? | | ???????????????# #???????????????????????????? | | ???????????????# #???????????????????????????? | | ???????????????? #???????????????????????????? | | ?#########??????? #???????????????????????????? | | ?# #????#####+###??????????????????????????? | | ?# = ######### #########???????????????????? | | ?# !%% " ????????????? | | ?######+########## "%#########???????????????????? | | ?# "T" ###### ##???????????????????????????? | | ?#== """ #????# #????????????????????????????? | | ?#== """ #????# #????????????????????????????? | | ?#== """ #????# #????????????????????????????? | | ?# """ #????# #????????????????????????????? | | ?# """ #????# #????????????????????????????? | | ?#! #????# #????????????????????????????? | | ?#############????# #????????????????????????????? | | ??????????????????# #?###+###????????????????????? | | ??????????????????# #?# #######+#####????????? | | ??????????????????# ### " ???????? | | ??????????????????# "T ???????? | | ??????????????????##### u % ???????? | | ??????????????????????# #######??????????????? | | ??????????????????????###m###????????????????????? | | ????????????????????????#!#??????????????????????? | | ????????????????????????#@#??????????????????????? | | ????????????????????????#g#??????????????????????? | | ????????????????????????#g#??????????????????????? | | ??????????????????????? gg#??????????????????????? | | ??????????????????????## #??????????????????????? | | ???????????????????????# ??????????????????????? | | ???????????????????????#! ??????????????????????? | | ???????????????????????##!!??????????????????????? | | ????????????????????????###??????????????????????? | | ?????????????????????????????????????????????????? | | ?????????????????????????????????????????????????? | | ?????????????????????????????????????????????????? | | ?????????????????????????????????????????????????? | | ?????????????????????????????????????????????????? | | ?????????????????????????????????????????????????? | | ?????????????????????????????????????????????????? | | ?????????????????????????????????????????????????? | | ?????????????????????????????????????????????????? | | ?????????????????????????????????????????????????? | | ?????????????????????????????????????????????????? | | ?????????????????????????????????????????????????? | | ?????????????????????????????????????????????????? | | ?????????????????????????????????????????????????? | | ?????????????????????????????????????????????????? | | ?????????????????????????????????????????????????? | +----------------------------------------------------+ Best States ------------- Heat Dissipation 42 Energy Generation 14 Energy Capacity 265 Matter Stores 300 Matter Capacity 300 Sight Range 16 Terrain Scan Density 10 Armor Coverage 150 Evasion (%) 55 Targeting Accuracy 10 Target Analysis 5 Offensive Hacking 10 Item Schematics ----------------- None Robot Schematics ------------------ None Fabricated ------------ Nothing Alien Tech Used ----------------- None Achievements -------------- None Challenges ------------ None Game ------ Seed PointClaymoresNanovents Manual? 0 Play Time 00:19:00 Cumulative 1.6 hours Start 2024.04.29 @ 07:52:18 End 2024.04.29 @ 08:14:55 Sessions 1 Manual Loads 0 Difficulty Rogue Special Mode None Game No. 6 Rogue 6 Adventurer 0 Explorer 0 Win Type - Total 0 Types 0/0/0/0/0/0/0/0/0 Lore% 0 Gallery% 7 Achievement% 7 Wizard Run 0 Options --------- Layout 1 ASCII 0 Keyboard 0 Movement Mouse Keybinds 0 Fullscreen 0 Font 20/SmallcapsGlow Map View 50x35 Zoom Use 0% Tactical HUD 1 Map Filters NONE Filters NONE Steam 1 RUN: 9af9bbce-2f1b-4381-b386-b467d4487fb1